fUSD/lending_fUSD_20260409
["ID","MTS","AMOUNT","RATE_DAILY","PERIOD"]
[420125647,1775700639142,-7147.02181373,0.000107,2]
[420125648,1775700639237,-258.6,0.000107,2]
[420125649,1775700639249,-383.736,0.000107,2]
[420125650,1775700639261,-546.71163796,0.000107,2]
[420125711,1775700640584,-44287.93176783,0.000107,2]
[420125712,1775700640595,-1000.0,0.000108,2]
[420125713,1775700640606,-200.0,0.00010878,2]
[420125714,1775700640617,-227.16793493,0.00010878,2]
[420125715,1775700640627,-9510.32668735,0.000109,2]
[420125716,1775700640637,-500.0,0.00010959,2]
[420125717,1775700640647,-227.79560374,0.00010959,2]
[420125718,1775700640657,-633.39170971,0.00010968,2]
[420125719,1775700640667,-3023.43685101,0.00011,2]
[420125720,1775700640677,-154.28671623,0.00011,2]
[420125721,1775700640687,-322.33726529,0.00011,2]
[420125722,1775700640696,-261.35181984,0.00011,2]
[420125723,1775700640707,-500.99512268,0.00011033,2]
[420125724,1775700640717,-9510.32668735,0.00011047,2]
[420125725,1775700640727,-151.524,0.00011087,2]
[420125726,1775700640738,-32214.68673648,0.00011099,2]
[420125727,1775700640748,-1587.0,0.00011105,2]
[420125728,1775700640758,-150.0,0.0001116,2]
[420125729,1775700640768,-1680.0,0.00011254,2]
[420125730,1775700640778,-193.0,0.00011254,2]
[420125731,1775700640788,-300.32314758,0.00011254,2]
[420125732,1775700640798,-250.0,0.00011254,2]
[420125733,1775700640808,-250.0,0.00011256,2]
[420125734,1775700640818,-600.0,0.00011256,2]
[420125735,1775700640829,-600.0,0.00011256,2]
[420125736,1775700640838,-600.0,0.00011256,2]
[420125737,1775700640848,-600.0,0.00011256,2]
[420125738,1775700640859,-600.0,0.00011256,2]
[420125739,1775700640868,-195.0,0.00011256,2]
[420125740,1775700640879,-195.0,0.00011256,2]
[420125741,1775700640888,-195.0,0.00011256,2]
[420125742,1775700640899,-195.0,0.00011256,2]
[420125743,1775700640909,-195.0,0.00011256,2]
[420125744,1775700640919,-255.0,0.0001134,2]
[420125745,1775700640929,-32214.68673647,0.00011385,2]
[420125746,1775700640938,-251.98897865,0.00011386,2]
[420125747,1775700640948,-200.0,0.00011426,2]
[420125748,1775700640957,-500.0,0.00011486,2]
[420125749,1775700640967,-500.0,0.00011486,2]
[420125750,1775700640977,-173.4844,0.000116,2]
[420125751,1775700640987,-1298.0,0.00011625,2]
[420125752,1775700640997,-451.0,0.00011648,2]
[420125753,1775700641007,-1326.0,0.00011672,2]
[420125754,1775700641017,-9510.32668735,0.00011856,2]
[420125755,1775700641027,-32214.68673647,0.0001195,2]
[420125756,1775700641037,-200.0,0.00011974,2]
[420125757,1775700641047,-502.19224822,0.00012034,2]
[420125758,1775700641057,-1000.0,0.00012034,2]
[420125759,1775700641067,-579.48502701,0.00012086,2]
[420125760,1775700641077,-366.41,0.00012122,2]
[420125761,1775700641087,-1000.0,0.00012126,2]
[420125762,1775700641097,-2351.0,0.00012379,2]
[420125763,1775700641107,-433.0,0.00012455,2]
[420125764,1775700641117,-2835.5,0.00012465,2]
[420125765,1775700641127,-2835.5,0.00012465,2]
[420125766,1775700641137,-32214.68673647,0.00012514,2]
[420125767,1775700641147,-200.0,0.00012522,2]
[420125768,1775700641157,-1500.0,0.00012582,2]
[420125769,1775700641167,-9510.32668735,0.00012665,2]
[420125770,1775700641176,-436.0,0.00012751,2]
[420125771,1775700641186,-273.0,0.00012751,2]
[420125772,1775700641196,-258.12215549,0.00012777,2]
[420125773,1775700641206,-2300.0,0.000129,4]
[420125774,1775700641216,-200.6457,0.00013,2]
[420125775,1775700641226,-201.85926455,0.0001307,2]
[420125776,1775700641237,-32214.68673647,0.00013078,2]
[420125777,1775700641248,-502.0,0.000131,2]
[420125778,1775700641258,-2000.0,0.0001313,2]
[420125779,1775700641267,-88612.17,0.0001318,2]
[420125780,1775700641277,-500.0,0.00013208,2]
[420125781,1775700641287,-250.0,0.00013367,2]
[420125782,1775700641297,-9510.32668735,0.00013473,2]
[420125783,1775700641307,-3000.0,0.00013534,2]
[420125784,1775700641317,-503.61549382,0.00013609,3]
[420125785,1775700641327,-3292.0,0.00013617,2]
[420125786,1775700641336,-32214.68673647,0.00013643,2]
[420125787,1775700641347,-736.0,0.00013674,2]
[420125788,1775700641357,-483.35788584,0.00013677,2]
[420125789,1775700641367,-150.0,0.00013696,2]
[420125790,1775700641377,-267.157264,0.00013698,2]
[420125791,1775700641387,-500.0,0.00013698,2]
[420125792,1775700641397,-500.0,0.00013698,2]
[420125793,1775700641408,-500.0,0.00013698,2]
[420125794,1775700641418,-500.0,0.00013698,2]
[420125795,1775700641428,-500.0,0.00013698,2]
[420125796,1775700641437,-500.0,0.00013698,2]
[420125797,1775700641447,-500.0,0.00013698,2]
[420125798,1775700641457,-500.0,0.00013698,2]
[420125799,1775700641468,-500.0,0.00013698,2]
[420125800,1775700641478,-587.28,0.00013698,2]
[420125801,1775700641488,-587.28,0.00013698,2]
[420125802,1775700641497,-500.0,0.00013698,2]
[420125803,1775700641507,-500.0,0.00013698,2]
[420125804,1775700641516,-500.0,0.00013698,2]
[420125805,1775700641526,-500.0,0.00013698,2]
[420125806,1775700641536,-500.0,0.00013698,2]
[420125807,1775700641546,-500.0,0.00013698,2]
[420125808,1775700641556,-500.0,0.00013698,2]
[420125809,1775700641567,-500.0,0.00013698,2]
[420125810,1775700641577,-500.0,0.00013698,2]
[420125811,1775700641586,-500.0,0.00013698,2]
[420125812,1775700641595,-500.0,0.00013698,2]
[420125813,1775700641605,-500.0,0.00013698,2]
[420125814,1775700641614,-500.0,0.00013698,2]
[420125815,1775700641624,-500.0,0.00013698,2]
[420125816,1775700641634,-500.0,0.00013698,2]
[420125817,1775700641644,-500.0,0.00013698,2]
[420125818,1775700641653,-500.0,0.00013698,2]
[420125819,1775700641663,-508.28,0.00013698,2]
[420125820,1775700641672,-179.59342446,0.00013698,2]
[420125821,1775700641681,-626.3,0.00013698,2]
[420125822,1775700641690,-500.0,0.00013698,2]
[420125823,1775700641700,-500.0,0.00013698,2]
[420125824,1775700641710,-500.0,0.00013698,2]
[420125825,1775700641720,-500.0,0.00013698,2]
[420125826,1775700641729,-500.0,0.00013698,2]
[420125827,1775700641739,-500.0,0.00013698,2]
[420125828,1775700641749,-500.0,0.00013698,2]
[420125829,1775700641759,-500.0,0.00013698,2]
[420125830,1775700641768,-500.0,0.00013698,2]
[420125831,1775700641778,-500.0,0.00013698,2]
[420125832,1775700641788,-500.0,0.00013698,2]
[420125833,1775700641799,-500.0,0.00013698,2]
[420125834,1775700641809,-500.0,0.00013698,2]
[420125835,1775700641819,-500.0,0.00013698,2]
[420125836,1775700641829,-500.0,0.00013698,2]
[420125837,1775700641839,-500.0,0.00013698,2]
[420125838,1775700641848,-500.0,0.00013698,2]
[420125839,1775700641858,-500.0,0.00013698,2]
[420125840,1775700641868,-500.0,0.00013698,2]
[420125841,1775700641877,-500.0,0.00013698,2]
[420125842,1775700641887,-500.0,0.00013698,2]
[420125843,1775700641897,-500.0,0.00013698,2]
[420125844,1775700641907,-500.0,0.00013698,2]
[420125845,1775700641916,-500.0,0.00013698,2]
[420125846,1775700641926,-500.0,0.00013698,2]
[420125847,1775700641936,-417.61051604,0.00013698,2]
[420125848,1775700641946,-500.0,0.00013698,2]
[420125849,1775700641956,-500.0,0.00013698,2]
[420125850,1775700641966,-500.0,0.00013698,2]
[420125851,1775700641976,-500.0,0.00013698,2]
[420125852,1775700641986,-500.0,0.00013698,2]
[420125853,1775700641997,-500.0,0.00013698,2]
[420125854,1775700642007,-532.24925946,0.00013698,2]
[420125855,1775700642017,-3069.0,0.00013699,2]
[420125856,1775700642027,-150.0,0.00013699,2]
[420125857,1775700642037,-150.0,0.00013699,2]
[420125858,1775700642048,-150.0,0.00013699,2]
[420125859,1775700642057,-853.48,0.00013699,2]
[420125860,1775700642067,-189.29,0.00013699,2]
[420125861,1775700642077,-160.0,0.00013732,2]
[420125862,1775700642087,-377.183691,0.00013732,2]
[420125863,1775700642097,-594.367383,0.00013732,2]
[420125864,1775700642107,-160.0,0.00013732,7]
[420125865,1775700642117,-1322.590346,0.00013732,7]
[420125866,1775700642126,-2485.180693,0.00013732,7]
[420125867,1775700642137,-153.32,0.00013738,2]
[420125868,1775700642147,-268.31,0.00013744,2]
[420125869,1775700642158,-344.98,0.00013749,2]
[420125870,1775700642168,-1700.0,0.00013808,2]
[420125871,1775700642177,-160.0,0.00013849,7]
[420125872,1775700642187,-1729.265546,0.00013849,7]
[420125873,1775700642197,-3298.531093,0.00013849,7]
[420125874,1775700642206,-4600.0,0.000139,5]
[420125875,1775700642216,-200.0,0.000139,5]
[420125876,1775700642225,-200.0,0.000139,5]
[420125877,1775700642235,-200.0,0.000139,5]
[420125878,1775700642244,-200.0,0.000139,5]
[420125879,1775700642254,-200.0,0.000139,5]
[420125880,1775700642264,-200.0,0.000139,5]
[420125881,1775700642274,-200.0,0.000139,5]
[420125882,1775700642285,-200.0,0.000139,5]
[420125883,1775700642295,-200.0,0.000139,5]
[420125884,1775700642305,-200.0,0.000139,5]
[420125885,1775700642315,-200.0,0.000139,5]
[420125886,1775700642325,-200.0,0.000139,5]
[420125887,1775700642335,-200.0,0.000139,5]
[420125888,1775700642345,-200.0,0.000139,5]
[420125889,1775700642355,-200.0,0.000139,5]
[420125890,1775700642365,-200.0,0.000139,5]
[420125891,1775700642374,-200.0,0.000139,5]
[420125892,1775700642384,-200.0,0.000139,5]
[420125893,1775700642393,-200.0,0.000139,5]
[420125894,1775700642404,-200.0,0.000139,5]
[420125895,1775700642414,-200.0,0.000139,5]
[420125896,1775700642423,-200.0,0.000139,5]
[420125897,1775700642433,-200.0,0.000139,5]
[420125898,1775700642443,-200.0,0.000139,5]
[420125899,1775700642452,-200.0,0.000139,5]
[420125900,1775700642462,-200.0,0.000139,5]
[420125901,1775700642472,-200.0,0.000139,5]
[420125902,1775700642481,-200.0,0.000139,5]
[420125903,1775700642491,-200.0,0.000139,5]
[420125904,1775700642501,-200.0,0.000139,5]
[420125905,1775700642510,-200.0,0.000139,5]
[420125906,1775700642520,-200.0,0.000139,5]
[420125907,1775700642530,-200.0,0.000139,5]
[420125908,1775700642540,-200.0,0.000139,5]
[420125909,1775700642550,-200.0,0.000139,5]
[420125910,1775700642560,-200.0,0.000139,5]
[420125911,1775700642570,-200.0,0.000139,5]
[420125912,1775700642580,-200.0,0.000139,5]
[420125913,1775700642589,-281.386917,0.000139,5]
[420125914,1775700642599,-160.0,0.00013959,2]
[420125915,1775700642609,-685.790753,0.00013959,2]
[420125916,1775700642619,-1211.581506,0.00013959,2]
[420125917,1775700642629,-160.0,0.00013959,7]
[420125918,1775700642638,-588.531788,0.00013959,7]
[420125919,1775700642648,-1017.063576,0.00013959,7]
[420125920,1775700642658,-160.0,0.00013959,7]
[420125921,1775700642667,-788.268259,0.00013959,7]
[420125922,1775700642677,-1416.536519,0.00013959,7]
[420125923,1775700642687,-150.0,0.00013973,2]
[420125924,1775700642696,-150.0,0.00013973,2]
[420125925,1775700642705,-150.0,0.0001399,2]
[420125926,1775700642716,-209.398029,0.00014,2]
[420125928,1775700642725,-500.0,0.00014012,2]
[420125930,1775700642735,-500.0,0.00014012,2]
[420125931,1775700642744,-500.0,0.00014012,2]
[420125932,1775700642754,-500.0,0.00014012,2]
[420125933,1775700642765,-500.0,0.00014012,2]
[420125934,1775700642774,-500.0,0.00014012,2]
[420125935,1775700642785,-500.0,0.00014012,2]
[420125936,1775700642794,-500.0,0.00014012,2]
[420125937,1775700642804,-714.62785454,0.00014062,2]
[420125938,1775700642814,-502.0,0.00014114,2]
[420125939,1775700642823,-6328.53,0.00014132,2]
[420125940,1775700642833,-397.60433968,0.00014147,2]
[420125941,1775700642843,-3240.0,0.00014183,2]
[420125942,1775700642853,-32214.68673647,0.00014207,2]
[420125943,1775700642862,-150.0,0.00014247,2]
[420125944,1775700642872,-662.77616733,0.00014268,4]
[420125945,1775700642882,-9510.32668735,0.00014282,2]
[420125946,1775700642892,-163.61,0.00014285,2]
[420125947,1775700642902,-162.0,0.000144,2]
[420125948,1775700642912,-162.0,0.000144,2]
[420125949,1775700642922,-320.0,0.000144,2]
[420125950,1775700642931,-1573.0,0.000144,2]
[420125953,1775700642941,-1573.0,0.000144,2]
[420125955,1775700642950,-1573.0,0.000144,2]
[420125957,1775700642960,-162.0,0.000144,2]
[420125959,1775700642970,-162.0,0.000144,2]
[420125960,1775700642979,-1573.0,0.000144,2]
[420125961,1775700642989,-232.0595,0.000144,2]
[420125962,1775700642999,-514.341398,0.00014418,2]
[420125964,1775700643010,-1803.532291,0.00014418,7]
[420125966,1775700643020,-2358.089381,0.00014542,7]
[420125968,1775700643032,-160.0,0.0001457,2]
[420125970,1775700643044,-351.0,0.00014613,4]
[420125972,1775700643057,-366.41,0.00014634,2]
[420125974,1775700643064,-4632.11842333,0.00014636,2]
[420125976,1775700643073,-935.169209,0.00014657,2]
[420125978,1775700643082,-1203.815021,0.00014657,7]
[420125980,1775700643091,-1074.911263,0.00014657,7]
[420125981,1775700643098,-162.0,0.0001472,2]
[420125983,1775700643106,-162.0,0.0001472,2]
[420125985,1775700643114,-1573.0,0.0001472,2]
[420125987,1775700643122,-32214.68673647,0.00014771,2]
[420125988,1775700643130,-956.45107068,0.00014795,2]
[420125990,1775700643137,-170.32,0.00014804,2]
[420125992,1775700643146,-300.0,0.00014863,2]
[420125994,1775700643154,-324.01,0.00014886,2]
[420125995,1775700643162,-258.24,0.00014895,2]
[420125997,1775700643171,-153.69,0.00014898,2]
[420125999,1775700643179,-204.91904089,0.00014899,2]
[420126000,1775700643186,-3000.0,0.00014904,2]
[420126001,1775700643194,-397.60433966,0.00014974,2]
[420126002,1775700643202,-1000.0,0.00014975,2]
[420126003,1775700643210,-986.05,0.00014977,2]
[420126004,1775700643217,-786.15,0.00014977,2]
[420126005,1775700643225,-4609.0,0.00014978,2]
[420126006,1775700643233,-1000.0,0.00014983,2]
[420126007,1775700643241,-216.35,0.00015,2]
[420126008,1775700643249,-10014.41980584,0.00015,2]
[420126009,1775700643256,-391.71,0.00015,2]
[420126010,1775700643263,-1252.0,0.00015006,2]
[420126011,1775700643272,-5000.0,0.00015007,2]
[420126012,1775700643280,-162.0,0.0001504,2]
[420126013,1775700643288,-162.0,0.0001504,2]
[420126026,1775700643710,-1573.0,0.0001504,2]
[420126027,1775700643721,-1573.0,0.0001504,2]
[420126028,1775700643731,-1572.0,0.0001504,2]
[420126029,1775700643742,-1573.0,0.0001504,2]
[420126030,1775700643753,-500.0,0.00015042,2]
[420126031,1775700643763,-500.0,0.00015042,2]
[420126032,1775700643773,-500.0,0.00015042,2]
[420126033,1775700643784,-500.0,0.00015042,2]
[420126034,1775700643794,-634.77288001,0.00015042,2]
[420126035,1775700643804,-200.0,0.00015052,2]
[420126036,1775700643814,-578.20924308,0.00015052,2]
[420126037,1775700643824,-174.61919141,0.00015052,2]
[420126038,1775700643835,-1191.11104075,0.00015052,2]
[420126039,1775700643845,-601.3376128,0.00015052,2]
[420126040,1775700643855,-7965.41053268,0.00015052,2]
[420126041,1775700643865,-500.0,0.00015052,2]
[420126042,1775700643875,-151.0,0.00015052,2]
[420126043,1775700643885,-151.0,0.00015052,2]
[420126044,1775700643895,-151.0,0.00015052,2]
[420126045,1775700643905,-162.00740209,0.00015052,2]
[420126046,1775700643915,-178.09177821,0.00015052,2]
[420126047,1775700643925,-175.89177646,0.00015052,2]
[420126048,1775700643935,-1500.0,0.00015052,2]
[420126049,1775700643945,-1500.0,0.00015052,2]
[420126050,1775700643955,-160.71220784,0.00015052,2]
[420126051,1775700643965,-151.0,0.00015052,2]
[420126052,1775700643975,-1500.0,0.00015052,2]
[420126053,1775700643985,-1500.0,0.00015052,2]
[420126054,1775700643996,-1500.0,0.00015052,2]
[420126055,1775700644006,-1500.0,0.00015052,2]
[420126056,1775700644017,-1612.05314765,0.00015052,2]
[420126057,1775700644027,-174.61919141,0.00015052,2]
[420126058,1775700644038,-578.20924308,0.00015052,2]
[420126059,1775700644048,-170.0,0.00015052,2]
[420126060,1775700644058,-170.0,0.00015052,2]
[420126061,1775700644069,-170.0,0.00015052,2]
[420126062,1775700644079,-170.0,0.00015052,2]
[420126063,1775700644089,-743.50770149,0.00015052,2]
[420126064,1775700644099,-170.0,0.00015052,2]
[420126065,1775700644108,-170.0,0.00015052,2]
[420126066,1775700644118,-170.0,0.00015052,2]
[420126067,1775700644127,-170.0,0.00015052,2]
[420126068,1775700644136,-170.0,0.00015052,2]
[420126069,1775700644146,-170.0,0.00015052,2]
[420126070,1775700644155,-170.0,0.00015052,2]
[420126071,1775700644165,-170.0,0.00015052,2]
[420126072,1775700644174,-170.0,0.00015052,2]
[420126073,1775700644184,-170.0,0.00015052,2]
[420126074,1775700644193,-279.9045709,0.00015052,2]
[420126075,1775700644203,-170.0,0.00015052,2]
[420126076,1775700644212,-168.70890056,0.00015052,2]
[420126077,1775700644222,-1500.0,0.00015052,2]
[420126078,1775700644231,-1534.61860967,0.00015052,2]
[420126079,1775700644241,-1000.0,0.00015059,2]
[420126080,1775700644249,-1000.0,0.00015088,2]
[420126081,1775700644258,-9510.32668735,0.00015091,2]
[420126082,1775700644267,-500.0,0.00015096,2]
[420126083,1775700644277,-500.0,0.00015105,2]
[420126084,1775700644287,-500.0,0.00015105,2]
[420126085,1775700644297,-229.90601371,0.00015105,2]
[420126086,1775700644306,-500.0,0.00015105,2]
[420126087,1775700644316,-500.0,0.00015105,2]
[420126088,1775700644325,-500.0,0.00015105,2]
[420126089,1775700644334,-508.28,0.00015105,2]
[420126090,1775700644344,-626.3,0.00015105,2]
[420126091,1775700644353,-8260.13072239,0.00015107,2]
[420126092,1775700644363,-500.0,0.00015107,2]
[420126093,1775700644373,-151.0,0.00015107,2]
[420126094,1775700644383,-1098.86809427,0.00015123,2]
[420126095,1775700644392,-502.0,0.00015127,3]
[420126096,1775700644402,-1000.0,0.00015143,2]
[420126097,1775700644412,-180.6572743,0.00015158,2]
[420126098,1775700644422,-8565.75555911,0.00015162,2]
[420126099,1775700644432,-500.0,0.00015162,2]
[420126100,1775700644441,-151.0,0.00015162,2]
[420126101,1775700644450,-150.0,0.00015178,2]
[420126102,1775700644459,-1700.0,0.00015178,2]
[420126103,1775700644469,-1000.0,0.00015198,2]
[420126104,1775700644477,-1149.094443,0.000152,2]
[420126105,1775700644487,-7020.97897167,0.000152,2]
[420126106,1775700644497,-5000.0,0.000152,2]
[420126107,1775700644507,-5000.0,0.000152,2]
[420126108,1775700644517,-5000.0,0.000152,2]
[420126109,1775700644526,-5000.0,0.000152,2]
[420126110,1775700644536,-1459.731903,0.000152,2]
[420126111,1775700644546,-644.4,0.00015205,2]
[420126112,1775700644556,-350.0,0.00015213,3]
[420126113,1775700644566,-8882.6885148,0.00015217,2]
[420126114,1775700644576,-500.0,0.00015217,2]
[420126115,1775700644586,-151.0,0.00015217,2]
[420126116,1775700644595,-986.05,0.00015251,2]
[420126117,1775700644605,-786.15,0.00015251,2]
[420126118,1775700644618,-1000.0,0.00015256,2]
[420126119,1775700644627,-366.41,0.00015256,2]
[420126120,1775700644637,-542.91850225,0.0001526,2]
[420126121,1775700644646,-500.0,0.0001527,2]
[420126122,1775700644656,-500.0,0.0001527,2]
[420126123,1775700644665,-500.0,0.0001527,2]
[420126124,1775700644674,-9211.34798985,0.00015272,2]
[420126125,1775700644686,-500.0,0.00015272,2]
[420126126,1775700644695,-151.0,0.00015272,2]
[420126127,1775700644704,-200.0,0.00015297,2]
[420126128,1775700644713,-250.0,0.00015297,2]
[420126129,1775700644723,-250.0,0.00015297,2]
[420126130,1775700644732,-225.71,0.00015297,2]
[420126131,1775700644741,-239.355,0.00015297,2]
[420126132,1775700644751,-209.532,0.00015297,2]
[420126133,1775700644760,-163.59,0.00015297,2]
[420126134,1775700644770,-250.0,0.00015297,2]
[420126135,1775700644779,-156.347,0.00015297,2]
[420126136,1775700644788,-193.677,0.00015297,2]
[420126137,1775700644798,-166.221,0.00015297,2]
[420126138,1775700644807,-215.062,0.00015297,2]
[420126139,1775700644816,-250.0,0.00015297,2]
[420126140,1775700644826,-181.0,0.00015297,2]
[420126141,1775700644836,-240.446,0.00015297,2]
[420126142,1775700644845,-1365.358,0.00015297,2]
[420126143,1775700644854,-3532.699,0.00015297,2]
[420126144,1775700644864,-622.754,0.00015297,2]
[420126145,1775700644873,-150.137,0.00015297,2]
[420126146,1775700644883,-1341.493,0.00015297,2]
[420126147,1775700644893,-1218.0,0.00015297,2]
[420126148,1775700644902,-926.335,0.00015297,2]
[420126149,1775700644912,-6023.0,0.00015297,2]
[420126150,1775700644921,-415.0,0.00015297,2]
[420126151,1775700644931,-6900.0,0.000153,5]
[420126152,1775700644940,-350.0,0.00015301,2]
[420126153,1775700644949,-1000.0,0.00015305,2]
[420126154,1775700644959,-500.0,0.00015327,2]
[420126155,1775700644968,-9552.16786547,0.00015327,2]
[420126156,1775700644977,-151.0,0.00015327,2]
[420126157,1775700644988,-32214.68673647,0.00015336,2]
[420126158,1775700644997,-150.0,0.00015337,2]
[420126159,1775700645007,-150.0,0.00015344,2]
[420126160,1775700645017,-162.0,0.0001536,2]
[420126161,1775700645026,-1573.0,0.0001536,2]
[420126162,1775700645037,-1573.0,0.0001536,2]
[420126163,1775700645046,-1573.0,0.0001536,2]
[420126164,1775700645057,-162.0,0.0001536,2]
[420126165,1775700645066,-162.0,0.0001536,2]
[420126166,1775700645076,-1573.0,0.0001536,2]
[420126167,1775700645085,-500.0,0.00015382,2]
[420126168,1775700645095,-9905.5980765,0.00015382,2]
[420126169,1775700645105,-151.0,0.00015382,2]
[420126170,1775700645114,-9200.0,0.000154,5]
[420126171,1775700645123,-1000.0,0.00015402,2]
[420126172,1775700645133,-2000.0,0.00015405,2]
[420126173,1775700645142,-500.0,0.00015405,2]
[420126174,1775700645152,-1000.0,0.00015409,2]
[420126175,1775700645161,-500.0,0.00015427,2]
[420126176,1775700645171,-500.0,0.00015427,2]
[420126177,1775700645181,-500.0,0.00015427,2]
[420126178,1775700645191,-500.0,0.00015427,2]
[420126179,1775700645201,-500.0,0.00015437,2]
[420126180,1775700645211,-10272.10520533,0.00015437,2]
[420126181,1775700645220,-151.0,0.00015437,2]
[420126182,1775700645229,-150.0,0.00015445,2]
[420126183,1775700645239,-150.0,0.00015452,2]
[420126184,1775700645249,-1141.24871311,0.00015469,2]
[420126185,1775700645258,-551.0,0.00015471,2]
[420126186,1775700645269,-786.96,0.00015471,2]
[420126187,1775700645278,-2633.42,0.00015471,2]
[420126188,1775700645288,-6919.59,0.00015471,2]
[420126189,1775700645297,-1000.0,0.00015475,2]
[420126190,1775700645306,-500.0,0.00015492,2]
[420126191,1775700645316,-10652.17309792,0.00015492,2]
[420126192,1775700645326,-151.0,0.00015492,2]
[420126193,1775700645336,-2024.96661992,0.000155,2]
[420126194,1775700645346,-11600.0,0.000155,5]
[420126195,1775700645355,-5888.0,0.00015501,2]
[420126196,1775700645364,-150.0,0.00015503,2]
[420126197,1775700645374,-4000.0,0.00015507,2]
[420126198,1775700645383,-150.0,0.00015514,2]
[420126199,1775700645394,-900.0,0.00015519,2]
[420126200,1775700645403,-551.0,0.00015521,2]
[420126201,1775700645414,-4228.0,0.00015524,2]
[420126202,1775700645423,-986.05,0.00015525,2]
[420126203,1775700645433,-786.15,0.00015525,2]
[420126204,1775700645442,-1000.0,0.00015531,2]
[420126205,1775700645452,-150.0,0.00015543,2]
[420126206,1775700645462,-883.94279567,0.00015547,2]
[420126207,1775700645471,-500.0,0.00015547,2]
[420126208,1775700645481,-151.0,0.00015547,2]
[420126209,1775700645490,-150.0,0.00015549,2]
[420126210,1775700645499,-551.0,0.00015552,2]
[420126211,1775700645508,-150.0,0.00015563,2]
[420126212,1775700645518,-151.55726367,0.00015571,2]
[420126213,1775700645527,-1000.0,0.00015572,2]
[420126214,1775700645537,-185.18721773,0.00015573,2]
[420126215,1775700645546,-578.36645902,0.00015577,2]
[420126216,1775700645556,-542.91850223,0.0001558,2]
[420126217,1775700645566,-150.0,0.00015581,2]
[420126218,1775700645575,-2300.0,0.000156,5]
[420126219,1775700645585,-1235.18214925,0.000156,2]
[420126220,1775700645595,-181.08010149,0.000156,2]
[420126221,1775700645605,-200.0,0.000156,2]
[420126222,1775700645614,-181.08010149,0.000156,2]
[420126223,1775700645623,-688.68986639,0.000156,2]
[420126224,1775700645633,-771.01748645,0.000156,2]
[420126225,1775700645643,-290.26104003,0.000156,2]
[420126226,1775700645653,-500.0,0.00015602,2]
[420126227,1775700645663,-151.0,0.00015602,2]
[420126228,1775700645674,-150.0,0.00015605,2]
[420126229,1775700645683,-1000.0,0.00015607,2]
[420126230,1775700645692,-855.71945347,0.00015634,2]
[420126231,1775700645702,-1000.0,0.00015637,2]
[420126232,1775700645711,-1000.0,0.00015637,2]
[420126233,1775700645721,-1000.0,0.00015637,2]
[420126234,1775700645730,-1000.0,0.00015637,2]
[420126235,1775700645740,-1000.0,0.00015637,2]
[420126236,1775700645750,-1000.0,0.00015637,2]
[420126237,1775700645759,-1000.0,0.00015637,2]
[420126238,1775700645769,-1000.0,0.00015637,2]
[420126239,1775700645779,-1000.0,0.00015637,2]
[420126240,1775700645788,-1000.0,0.00015637,2]
[420126241,1775700645798,-1000.0,0.00015637,2]
[420126242,1775700645808,-398.985,0.00015637,2]